Cogmind - Beta 14 @@@ ROGUE MODE // 2024.08.21 @ 02:47:09 Player: 0Z-4NL Result: Destroyed by Y-64 Sentinel with Wave Gun Performance ------------- Evolutions (5) 2500 Regions Visited (6) 1200 Robots Destroyed (118) 590 Value Destroyed (4473) 4473 Prototype IDs (8) 160 Alien Tech Used (0) 0 Bonus (968) 968 TOTAL SCORE: 9891 Bonus ------- High Alert Combat Kills 795 Follower Combat Kills 173 Cogmind --------- Core Integrity 0/1000 Matter 288/300 Energy 100/100 System Corruption 1% Temperature Cool (76) Movement Core (50) Location -5/Factory Parts ------- > --- POWER (2) -------- (None) > --- PROPULSION (5) --- (None) > --- UTILITY (6) ------ (None) > --- WEAPON (4) ------- (None) > --- INVENTORY (5) ---- Advanced Sensor Array Stasis Canceller Advanced Drone Bay (2/2) Remote Datajack Peak State ------------ > --- POWER ------------ Antimatter-Fission Reactor > --- PROPULSION ------- Carbon-fiber Leg Carbon Exoskeleton > --- UTILITY ---------- Armored Scrap Engine Large Storage Unit Advanced Sensor Array Advanced Signal Interpreter Advanced Targeting Computer > --- WEAPON ----------- Disruptor Cannon Hpw. Ballistic Particle Construct/G Thermic Coil Construct/G Kinetic HMG Construct/G > --- INVENTORY -------- Wheel Advanced Heat Sink Advanced Heat Sink Matter Compressor Advanced Signal Interpreter Advanced Terrain Scanner Stasis Canceller Advanced Drone Bay Rocket Launcher Subdweller Shrapnel Launcher Remote Datajack Improved Remote Datajack Power Sword [Rating: 84] Favorites ----------- Power Constructs Engine Ion Engine Power Core Fission Core Reactor Constructs Propulsion Constructs Treads Light Treads Leg Constructs Wheel Compact Wheel Hover Unit Improved Hover Unit Utility Armored Scrap Engine Device Armored Scrap Engine Storage Large Storage Unit Processor Terrain Scan Processor Protection Medium Armor Plating Weapon Grenade Launcher Energy Gun Constructs Energy Cannon Particle Cannon Ballistic Gun Constructs Ballistic Cannon Constructs Launcher Grenade Launcher Special Weapon Mining Laser Slashing Weapon Axe Special Melee Weapon Improved Datajack Build | -11 -10 -10 -10 -8 -6 -5 ------- Run | Yrd Mat Min Sub Rec Fac Fac Slots Evolved 10 | . . . . . 8 2 Power 1 | . . . . . 1 . Propulsion 3 | . . . . . 2 1 Utility 4 | . . . . . 3 1 Weapon 2 | . . . . . 2 . Parts Attached 146 | . 25 14 19 17 51 20 Power 6 | . 2 . 1 2 1 . Engine 5 | . 2 . 1 2 . . Core 1 | . . . . . 1 . Reactor . | . . . . . . . Propulsion 29 | . 10 . 2 4 11 2 Treads 9 | . 4 . 1 . 4 . Leg 3 | . . . . 2 . 1 Wheel 15 | . 6 . 1 2 5 1 Hover 2 | . . . . . 2 . Flight . | . . . . . . . Utility 65 | . 6 8 13 3 26 9 Device 35 | . . 4 5 2 18 6 Storage 8 | . 4 . 1 . 3 . Processor 6 | . . . . . 5 1 Hackware . | . . . . . . . Protection 16 | . 2 4 7 1 . 2 Artifact . | . . . . . . . Weapon 46 | . 7 6 3 8 13 9 Energy Gun 5 | . . 1 . 4 . . Energy Cannon 9 | . . . . 4 3 2 Ballistic Gun 4 | . 3 . . . . 1 Ballistic Cannon 2 | . 1 1 . . . . Launcher 13 | . 2 2 2 . 6 1 Special Weapon 6 | . 1 2 1 . 2 . Impact Weapon . | . . . . . . . Slashing Weapon 5 | . . . . . 1 4 Piercing Weapon . | . . . . . . . Special Melee Weapon 2 | . . . . . 1 1 Unidentified Prototypes 1 | . . . . 1 . . Parts Lost 34 | . 4 . . . 15 15 Power 4 | . 1 . . . 2 1 Propulsion 12 | . 1 . . . 6 5 Utility 5 | . . . . . 1 4 Weapon 13 | . 2 . . . 6 5 Highest Loss Streak 7 | . 2 . . . 2 7 To Critical Strikes 1 | . . . . . . 1 Average Slot Usage (%) 80 | . 95 100 91 91 61 60 Engine 9 | . 13 14 14 12 5 . Treads 9 | . 13 14 14 12 3 . Leg 1 | . 2 . . 1 1 5 Wheel 9 | . 12 14 14 13 2 2 Hover 1 | . . . . . 4 . Device 7 | . . 6 . 10 13 9 Storage 8 | . 14 14 6 10 4 4 Processor 2 | . . . . . 4 10 Protection 5 | . 9 7 13 3 . . Energy Gun 2 | . 1 2 . 9 2 4 Energy Cannon 3 | . . . . 15 1 . Ballistic Gun 4 | . 21 5 . . 4 6 Ballistic Cannon 1 | . 1 . . . 4 2 Launcher 7 | . . 14 26 . . . Special Weapon 1 | . 4 5 1 . . . Peak Build Rating 84 | 6 11 11 15 33 74 84 Average Rating 30 | 6 8 10 11 18 55 68 On Entrance 20 | 6 6 11 11 15 31 62 Naked Turns 1 | . . . . . . 1 Heaviest Build 98 | 14 97 98 98 46 60 58 Greatest Support 88 | 20 20 16 20 38 88 57 Greatest Overweight (x) 14 | . 6 6 6 3 7 14 Average Overweight (x) 2 | . 2 5 2 1 1 2 Largest Inventory Capacity 25 | 8 25 25 25 15 15 15 Average Capacity 13 | 8 18 25 12 12 9 13 Most Carried 25 | 8 25 25 25 15 14 14 Average Carried 12 | 6 14 24 12 12 8 10 Final Capacity 25 | 8 25 25 15 5 15 5 Final Carried 25 | 8 25 25 15 5 13 5 Scrap Engine Consumption 116 | . . . . 15 92 9 Constructs Created 12 | . . . . 2 10 . Constructs Modified 33 | . . . . 1 25 7 Class Distribution -------------------- 62% | Mutant 21% | Construct 6% | Commander-Mutant 4% | Subdweller-Mutant 3% | Scavenger-Construct Dominant Class ---------------- Mutant | -10/Materials Mutant | -10/Mines Mutant | -10/Subcaves Mutant | -8/Recycling Mutant | -6/Factory Construct | -5/Factory Resources | -11 -10 -10 -10 -8 -6 -5 ----------- Run | Yrd Mat Min Sub Rec Fac Fac Matter Collected 3705 | 206 504 344 444 372 1529 306 Remotely . | . . . . . . . Salvage Created 4770 | 83 492 31 209 484 2805 666 Parts 237 | 2 29 5 12 17 137 35 Haulers Intercepted 3 | . 1 . . . 2 . Recyclers Shooed 10 | . . . . 4 6 . Parts Field Recycled . | . . . . . . . Retrieved Matter . | . . . . . . . Parts Self-Destructed 16 | . . . 16 . . . Prevented . | . . . . . . . Kills | -11 -10 -10 -10 -8 -6 -5 ------- Run | Yrd Mat Min Sub Rec Fac Fac Combat Hostiles Destroyed 83 | . 13 1 10 3 44 12 Guns 27 | . 9 . . 1 8 9 Cannons 15 | . 1 . . . 14 . AOE 39 | . 3 1 10 . 22 3 Classes Destroyed 21 | 1 5 2 2 2 8 1 Worker 6 | . 1 1 . . 4 . Builder 6 | . . . . . 5 1 Tunneler 2 | . . 1 . . 1 . Hauler 3 | . 1 . . . 2 . Recycler 8 | 1 . . . 2 5 . Mechanic 3 | . . . . . 2 1 Operator 3 | . 1 . . . 2 . Turret 2 | . . . 2 . . . Watcher 3 | . . . . . 3 . Swarmer 13 | . 3 . 1 . 9 . Grunt 40 | . 10 . 2 . 21 7 Brawler 1 | . . . . . 1 . Duelist 1 | . . . . . 1 . Sentry 4 | . . . . 2 2 . Hunter 6 | . . . . . 4 2 Programmer 7 | . . . . . 5 2 Heavy 1 | . . . . . . 1 Behemoth 1 | . . . . . 1 . Subdweller 7 | . . . 7 . . . Scrapper 1 | . . . . 1 . . Assembled 1 | . . 1 . . . . Best Kill Streak 10 | 1 5 1 2 3 10 7 Combat Bots Only 7 | . 3 1 2 2 7 6 Max Kills in Single Turn 3 | 1 2 1 2 1 3 2 Gunslinging . | . . . . . . . Exploded 3 | . 2 1 2 . 3 2 Melee . | . . . . . . . Uniques/NPCs Destroyed . | . . . . . . . Combat | -11 -10 -10 -10 -8 -6 -5 -------- Run | Yrd Mat Min Sub Rec Fac Fac Hostile Shots Fired 857 | . 69 1 38 15 417 317 Missed 248 | . 17 . 12 3 128 88 Damage Taken 9725 | . 675 28 417 236 4355 4014 Core 1629 | . 87 8 58 . 462 1014 Absorbed by Shields 14 | . . . . 14 . . Redirected to Shielding 17 | . 17 . . . . . Regen/Repaired (Parts) 1432 | . . . . 80 1145 207 Core Remaining (%) 61 | 100 . . . 38 45 . Volleys Fired 354 | 2 42 29 16 39 187 39 Largest 4 | 2 2 1 2 2 4 4 Hottest 205 | 60 100 100 73 143 197 205 Shots Fired 580 | 4 75 29 30 55 306 81 Gun 298 | 4 62 6 . 35 124 67 Cannon 190 | . 4 2 . 20 154 10 Launcher 70 | . 6 2 30 . 28 4 Special 22 | . 3 19 . . . . Kinetic 266 | 2 60 4 1 . 147 52 Thermal 220 | . 3 23 . 55 114 25 Explosive 58 | . 6 2 29 . 21 . Electromagnetic 36 | 2 6 . . . 24 4 Robot Hit Streak 36 | 3 11 4 6 36 16 15 Robot Miss Streak 4 | . 4 1 . 2 4 4 Penetration Max 1 | . . . . . . 1 Secondary Targets 5 | . 1 . . . 1 3 Max Gunslinging Chain 1 | . 1 . . . 1 1 Shots Hit Robots 341 | 3 47 5 2 41 189 54 Core Hits 265 | 2 28 3 23 14 163 32 Critical Kills . | . . . . . . . Critical Parts Destroyed . | . . . . . . . Critical Strikes 5 | . 1 . . 2 2 . Burn 3 | . . . . 2 1 . Blast 1 | . 1 . . . . . Corrupt 1 | . . . . . 1 . Melee Attacks 2 | . . . . . 2 . Impact . | . . . . . . . Slashing 2 | . . . . . 2 . Piercing . | . . . . . . . Sneak Attacks . | . . . . . . . Combat Hostiles . | . . . . . . . Follow-up Attacks . | . . . . . . . Damage Inflicted 13454 | 40 919 115 1011 600 8695 2074 Guns 4485 | 40 558 64 . 402 2034 1387 Cannons 2976 | . 66 . . 198 2684 28 Explosions 5981 | . 295 51 1007 . 3977 651 Melee . | . . . . . . . Ramming 12 | . . . 4 . . 8 Kinetic 5512 | 28 583 13 48 . 3346 1494 Thermal 3504 | . . 51 . 600 2309 544 Explosive 3638 | . 295 51 959 . 2333 . Electromagnetic 788 | 12 41 . . . 707 28 Impact . | . . . . . . . Slashing . | . . . . . . . Piercing . | . . . . . . . Highest Corruption 6 | . . . . . 6 1 Average Corruption 2 | . . . . . 2 1 Corruption Purged 5 | . . . . . 5 . Corruption Blocked . | . . . . . . . Effects 40 | . . . . . 37 3 Message Errors 11 | . . . . . 11 . Matter Fused 7 | . . . . . 6 1 Heat Flow Errors 6 | . . . . . 5 1 Energy Discharges 5 | . . . . . 4 1 Parts Rejected 2 | . . . . . 2 . Data Loss (minor) 2 | . . . . . 2 . Data Loss (major) 1 | . . . . . 1 . Misfires 1 | . . . . . 1 . Alerts 2 | . . . . . 2 . Weapon Failures 3 | . . . . . 3 . Overload Shots . | . . . . . . . Overflow Damage 158 | . 11 2 . . 145 . Projectiles 32 | . . . . . 32 . Explosions 126 | . 11 2 . . 113 . Melee . | . . . . . . . Knockbacks 14 | . 1 . . . 13 . Impact . | . . . . . . . Kinetic 14 | . 1 . . . 13 . Secondary . | . . . . . . . Self-Inflicted Damage 418 | . 20 17 17 . 364 . Shots 13 | . 1 1 2 . 9 . Rammed 1 | . . . 1 . . . Targets Rammed 2 | . . . 1 . . 1 Kicked 1 | . . . . . . 1 Crushed . | . . . . . . . Highest Temperature 415 | . 57 60 . 324 415 149 Average Temperature 75 | . 23 20 . 77 103 32 Received Heat Transfer 2232 | . 354 20 132 72 928 726 Effects 6 | . . . . . 6 . Energy Bleed 3 | . . . . . 3 . Interference 2 | . . . . . 2 . Short Circuit 1 | . . . . . 1 . Siege Activations . | . . . . . . . Robots Corrupted 1 | . . . . . 1 . Combat Hostiles . | . . . . . . . Parts Fried 4 | . . . . . 4 . Impact Corruptions . | . . . . . . . Robots Melted 2 | . . . . 2 . . Combat Hostiles 2 | . . . . 2 . . Parts Melted 10 | . . . . 3 6 1 Heat Transferred 5566 | . . 148 . 1653 2951 814 Parts Sabotaged . | . . . . . . . Parts Stolen . | . . . . . . . Parts Stripped . | . . . . . . . Power Chain Reactions 3 | . . . . . 3 . Alert | -11 -10 -10 -10 -8 -6 -5 ------- Run | Yrd Mat Min Sub Rec Fac Fac Peak Influence 1304 | 5 335 60 . 80 1304 936 Initial 633 | . 3 60 . . . 633 Average 222 | 3 160 21 . 18 318 703 Maximum Alert Level 4 | . 1 . . . 4 3 Low Security (%) 70 | 100 75 100 . 100 57 . Level 1 11 | . 24 . . . 20 . Level 2 6 | . . . . . 1 64 Level 3 8 | . . . . . 12 35 Level 4 3 | . . . . . 7 . Level 5 . | . . . . . . . High Security . | . . . . . . . Max Security . | . . . . . . . Squads Dispatched 26 | . 5 . . . 16 5 Investigation 3 | . 2 . . . 1 . Extermination 6 | . . . . . 5 1 Reinforcement 13 | . 3 . . . 9 1 Assault 2 | . . . . . 1 1 Garrison 2 | . . . . . . 2 Intercept . | . . . . . . . Searches Triggered . | . . . . . . . Construction Impeded 4 | . . . . . 4 . Haulers Reinforced . | . . . . . . . Active Scanning Responses . | . . . . . . . Cargo Convoy Interrupts . | . . . . . . . Stealth | -11 -10 -10 -10 -8 -6 -5 --------- Run | Yrd Mat Min Sub Rec Fac Fac Distress Signals 12 | . 2 . . 1 6 3 Communications Jammed . | . . . . . . . Distress Signals . | . . . . . . . Times Spotted 153 | . 25 3 13 6 68 38 Peak Tracking Total 15 | . 6 2 2 4 8 15 Tactical Retreats 12 | . 1 1 2 1 3 4 Traps | -11 -10 -10 -10 -8 -6 -5 ------- Run | Yrd Mat Min Sub Rec Fac Fac Traps Triggered 2 | . 1 . . . 1 . Indirectly . | . . . . . . . Trap Hack Attempts . | . . . . . . . Triggered . | . . . . . . . Disarmed . | . . . . . . . Reprogrammed . | . . . . . . . Reused . | . . . . . . . Traps Extracted . | . . . . . . . Installed . | . . . . . . . Triggered . | . . . . . . . Machines | -11 -10 -10 -10 -8 -6 -5 ---------- Run | Yrd Mat Min Sub Rec Fac Fac Machines Disabled 33 | . 3 . 2 1 26 1 Max in Single Turn 8 | . 2 . 2 1 8 1 Machines Repaired . | . . . . . . . Machines Dismantled . | . . . . . . . Machines Sabotaged . | . . . . . . . Overloaded Fab Kills . | . . . . . . . Hacking | -11 -10 -10 -10 -8 -6 -5 --------- Run | Yrd Mat Min Sub Rec Fac Fac Machines Accessed 23 | . 6 . . 11 5 1 Terminals 13 | . 5 . . 4 3 1 Fabricators . | . . . . . . . Repair Stations . | . . . . . . . Recycling Units 7 | . 1 . . 5 1 . Scanalyzers . | . . . . . . . Garrison Access 1 | . . . . . 1 . Total Hacks 69 | . 15 . . 45 7 2 Successful 52 | . 8 . . 39 4 1 Failed 17 | . 7 . . 6 3 1 Catastrophic 4 | . 2 . . . 2 . Database Lockouts . | . . . . . . . Manual 22 | . 12 . . 10 . . Terminals 31 | . 14 . . 11 4 2 Fabricators . | . . . . . . . Repair Stations . | . . . . . . . Recycling Units 11 | . 1 . . 8 2 . Scanalyzers . | . . . . . . . Garrison Access 1 | . . . . . 1 . Terminal Hacks 39 | . 5 . . 30 3 1 Record 24 | . . . . 24 . . Robot Analysis 5 | . 2 . . 2 1 . Open DSF 1 | . . . . . . 1 Branch Access Points 2 | . 1 . . 1 . . Alert Level 1 | . . . . 1 . . Locate Traps 4 | . 2 . . . 2 . Release Object 2 | . . . . 2 . . Fabricator Hacks . | . . . . . . . Repair Station Hacks . | . . . . . . . Recycling Unit Hacks 8 | . . . . 7 1 . Report Inventory 6 | . . . . 5 1 . Retrieve Components 2 | . . . . 2 . . Scanalyzer . | . . . . . . . Garrison Access Hacks . | . . . . . . . Unauthorized Hacks 5 | . 3 . . 2 . . Terminals 4 | . 2 . . 2 . . Botnet 4 | . 2 . . 2 . . Fabricators . | . . . . . . . Repair Stations . | . . . . . . . Recycling Units 1 | . 1 . . . . . Tunnel 1 | . 1 . . . . . Scanalyzers . | . . . . . . . Garrison Access . | . . . . . . . Data Cores Recovered 1 | . . . . . 1 . Used . | . . . . . . . Hacking Detections 13 | . 5 . . 4 3 1 Full Trace Events . | . . . . . . . Feedback Events . | . . . . . . . Feedback Blocked . | . . . . . . . Robot Schematics Acquired . | . . . . . . . Robots Built . | . . . . . . . Authchips . | . . . . . . . Time . | . . . . . . . Total Robot Build Rating . | . . . . . . . Part Schematics Acquired . | . . . . . . . Parts Built . | . . . . . . . Authchips . | . . . . . . . Time . | . . . . . . . Total Part Build Rating . | . . . . . . . Parts Repaired . | . . . . . . . Time . | . . . . . . . Parts Recycled . | . . . . . . . Recycled Matter . | . . . . . . . Retrieved Matter . | . . . . . . . Retrieved Components 6 | . . . . 6 . . Parts Scanalyzed . | . . . . . . . Part Schematics Acquired . | . . . . . . . Parts Damaged . | . . . . . . . Bothacking | -11 -10 -10 -10 -8 -6 -5 ------------ Run | Yrd Mat Min Sub Rec Fac Fac Used RIF Installer . | . . . . . . . Robots Hacked . | . . . . . . . Non-combat . | . . . . . . . Combat . | . . . . . . . Robot Hacks Applied . | . . . . . . . Relay Couplers Released . | . . . . . . . Fabnet Peak Effective % . | . . . . . . . Robots Rewired 6 | . . . . 6 . . Allies Hacked . | . . . . . . . Hacks Repelled . | . . . . . . . Allies | -11 -10 -10 -10 -8 -6 -5 -------- Run | Yrd Mat Min Sub Rec Fac Fac Total Allies 9 | . . 3 . 6 . . Largest Group 6 | . . 3 . 6 3 . Highest-Rated Group 107 | . . 40 . 107 47 . Highest-Rated Ally 27 | . . 16 . 27 16 . Total Orders . | . . . . . . . Ally Attacks 55 | . . 20 . 25 10 . Total Damage 740 | . . 138 . 505 97 . Kills 12 | . . 2 . 10 . . Allies Corrupted . | . . . . . . . Allies Melted . | . . . . . . . Intel | -11 -10 -10 -10 -8 -6 -5 ------- Run | Yrd Mat Min Sub Rec Fac Fac Robot Analysis Total 5 | . 2 . . 2 1 . Derelict Logs Recovered 1 | . . 1 . . . . Drone Launches . | . . . . . . . Drone Recoveries . | . . . . . . . Exploration | -11 -10 -10 -10 -8 -6 -5 ------------- Run | Yrd Mat Min Sub Rec Fac Fac Turns Passed 10047 | 27 1008 1271 2133 1641 3242 725 Spaces Moved 6109 | 16 567 636 1466 1086 1882 456 Core 134 | . . . . 8 . 126 Treads 180 | . . . 1 . 179 . Legs 393 | 16 35 . . 52 200 90 Wheels 4784 | . 532 636 1465 1026 885 240 Hover 618 | . . . . . 618 . Flight . | . . . . . . . Fastest Speed 50 | 120 95 175 100 80 55 50 Average Speed 135 | 120 134 178 134 118 134 122 Slowest Speed 750 | 120 190 190 260 135 480 750 Overloaded Moves . | . . . . . . . Propulsion Burnouts . | . . . . . . . Robots Hopped . | . . . . . . . Cave-ins Triggered . | . . . . . . . Exploration Rate (%) 52 | 3 89 85 44 99 38 11 Regions Visited 6 Branch Regions 3 Pre-discovered Areas 1 | . 1 . . . . . Known Exits Taken 1 | . 1 . . . . . Unknown Exits Taken 5 | 1 . 1 1 1 1 . Scrap Searched 3 | . . 1 2 . . . Spaces Dug 71 | . 3 8 28 5 22 5 Terrain Destroyed 515 | . 20 18 144 7 254 72 Melee 2 | . . . . . 2 . Projectile 57 | . 3 1 . 7 17 29 AOE 456 | . 17 17 144 . 235 43 Terrain Rammed . | . . . . . . . Walls Destroyed . | . . . . . . . Machines Disabled . | . . . . . . . Actions | -11 -10 -10 -10 -8 -6 -5 --------- Run | Yrd Mat Min Sub Rec Fac Fac Total 7329 | 20 730 700 1600 1396 2331 552 Wait 414 | 1 42 18 34 145 151 23 Move 6103 | 15 566 635 1465 1085 1881 456 Hop . | . . . . . . . Pick Up 85 | 2 36 2 17 8 18 2 Fast Attach 44 | . 3 . 5 9 21 6 Attach 31 | . 4 . . 1 18 8 Detach 34 | . . . 2 4 22 6 Swap 71 | . 18 14 14 7 12 6 Drop 103 | . 19 2 36 22 19 5 Fire 354 | 2 42 29 16 39 187 39 Melee 2 | . . . . . 2 . Ram . | . . . . . . . Kick 1 | . . . . . . 1 Crush 1 | . . . 1 . . . Escape Stasis . | . . . . . . . Rewire 76 | . . . . 76 . . Trap . | . . . . . . . Miscellaneous 10 | . . . 10 . . . Route ------- -11/Scrapyard -10/Materials (discovered 3 exits: [*Mat] / *Min x2) -10/Mines (discovered 3 exits: [*Mat x2] / [*Sub]) -10/Subcaves (discovered 2 exits: [*Mat] / *Rec) -8/Recycling -6/Factory (discovered 2 exits: *Fac x2) -5/Factory History --------- Turn | Location | Event 1 | -11/Scrapyard | Discovered new exit (range 2) 28 | -11/Scrapyard | Entered Materials 304 | -10/Materials | Build established: Mutant 340 | -10/Materials | Discovered new exit (range 16) 588 | -10/Materials | Identified exit to Mines 715 | -10/Materials | Discovered new exit (range 16) 1036 | -10/Materials | Entered Mines 1054 | -10/Mines | Discovered new exit (range 3) 1073 | -10/Mines | Met a Derelict bent on vengeance 1123 | -10/Mines | Received a Rocket Launcher from a helpful Derelict 1279 | -10/Mines | Discovered new exit (range 11) 1293 | -10/Mines | Assisted by bots powering up and referring to "LRC-V3" 1352 | -10/Mines | Learned Materials stockpile data 1574 | -10/Mines | Excavation squad dispatched 1574 | -10/Mines | A large section of the Mines collapsed 2050 | -10/Mines | Discovered new exit (range 10) 2103 | -10/Mines | Found DCF Scrap (11 items) 2307 | -10/Mines | Entered Subcaves 2741 | -10/Subcaves | Core integrity fell below 50% 2832 | -10/Subcaves | Disturbed a concealed Subdweller 3269 | -10/Subcaves | Discovered new exit (range 6) 3278 | -10/Subcaves | A swath of the cavern ceiling suddenly collapsed 3691 | -10/Subcaves | Shifting Twisted Machinery released Mak. System Shield 3693 | -10/Subcaves | Shifting Twisted Machinery released Sub. Machine Gun 3959 | -10/Subcaves | Build established: Subdweller-Mutant 3989 | -10/Subcaves | Discovered new exit (range 15) 4440 | -10/Subcaves | Entered Recycling 4441 | -8/Recycling | Met a Zionite searching for Scraptown 4468 | -8/Recycling | Build established: Mutant 4922 | -8/Recycling | Discovered new exit (range 8) 5346 | -8/Recycling | Build established: Commander-Mutant 5573 | -8/Recycling | Scanned before Scraplab entrance 5613 | -8/Recycling | Discovered new exit (range 3) 5633 | -8/Recycling | Entered Scraplab 5672 | -8/Recycling | Angered Scraplab inhabitants 5683 | -8/Recycling | Found Prototype Device 5683 | -8/Recycling | Identified Scrap Engine 5722 | -8/Recycling | Lost 3 allies 6081 | -8/Recycling | Entered Factory 6081 | -6/Factory | Accompanied by 3 allies 6081 | -6/Factory | Evolved 8 slots: Power x1, Propulsion x2, Utility x3, Weapon x2 6349 | -6/Factory | Lost 3 allies 6633 | -6/Factory | Spotted B-75 Beast 6655 | -6/Factory | Destroyed B-75 Beast 6940 | -6/Factory | Build established: Scavenger-Construct 7200 | -6/Factory | Discovered new exit (range 18) 7289 | -6/Factory | Build established: Construct 7971 | -6/Factory | Build established: Mutant 8237 | -6/Factory | Discovered new exit (range 14) 8641 | -6/Factory | Destroyed 7 combat bots 8881 | -6/Factory | First assault squad dispatched 8942 | -6/Factory | Build established: Construct 9167 | -6/Factory | Core integrity fell below 50% 9323 | -6/Factory | Entered another Factory area 9323 | -5/Factory | Evolved 2 slots: Propulsion x1, Utility x1 9623 | -5/Factory | First assault squad dispatched 9863 | -5/Factory | Garrison activated, responded to threat 9925 | -5/Factory | Lost 6 parts (2n2u2w) 9983 | -5/Factory | Lost 7 parts (1p3n1u2w) 9993 | -5/Factory | Core integrity fell below 50% 10010 | -5/Factory | Core integrity fell below 20% 10047 | -5/Factory | Released all parts (4) 10048 | -5/Factory | Destroyed by Y-64 Sentinel with Wave Gun Last Messages --------------- 10020_ Slug penetrates Wall. 10022_ Penetrated by Slug. 10023_ S-27 Virus destroyed. 10025_ U-05 Engineer builds a Wall. 10025_ S-27 Virus destroyed. 10025_ Penetrated by Slug. 10026_ S-27 Virus destroyed. 10028_ Slug penetrates Wall. 10031_ Slug penetrates Neutrino Reactor. 10033_ Acquired Autogun. 10034_ Penetrated by Slug. 10035_ Acquired 25 matter. 10036_ Penetrated by Slug. 10038_ Drone sends a signal. 10042_ Penetrated by Slug. 10047_ Autogun destroyed. 10047_ Critical hit (Burn: +37). 10047_ Released Adv. Signal Interpreter. 10047_ Released Adv. Targeting Computer. 10047_ Released Lyr. Heavy Armor Plating. Map ----- +----------------------------------------------------+ | ?????????????????????????????????????????????????? | | ?????????????????????????????????????????????????? | | ?????????????????????????????????????????????????? | | ?????????????????????????????????????????????????? | | ?????????????????????????????????????????????????? | | ?????????????????????????????????????????????????? | | ?????????????????????????????????????????????????? | | ?????????????????????????????????????????????????? | | ?????????????????????????????????????????????????? | | ?????????????????????????????????????????????????? | | ?????????????????????????????????????????????????? | | ?????????????????????????????????????????????????? | | ?????????????????????????????????????????????????? | | ?????????????????????????????????????????????????? | | ????????????????????????????????????????????????? | | ???????????????????????????????????????? ?????? | | ??????????????????????????????????????? ??? ??" | | ??????????????????????????????????????? "?? ??" | | ??????????????????????????????????? ? ? "?? ?"" | | ??????????????????????????????????? ? ? ?? """ | | ?????????????????????????????????##/#/## ?? | | ?????????????????????????????????# #] """ """ | | ?????##############???????###????# # """ """ | | ?????# #?????###Y###### # """ """ | | ?????# #?????#=!!! # # """ """ | | ?????# #?????#@!! # # | | ?????# #######ggg g # # """ """ | | ?????# # =#%g # # """ """ | | ?????# # #[h # # """ """ | | ?????# + #%""" # # """ """ | | ?????# # +=""" # # | | ?????# + #*""" ! # # | | ?????# # # # # ##### | | ?????# # ############+### T#??? | | ?????# # #??? | | ?????############## ##??? | | ??????????????????# #???? | | ??????????????????# #???? | | ??????????????????# #???? | | ??????????????????######## ########???? | | ?????????????????????????# #??????????? | | ?????????????????????????# #??????????? | | ?????????????????????????# #??????????? | | ?????????????????????????# #??????????? | | ?????????????????????????# #??????????? | | ?????????????????????????# #??????????? | | ?????????????????????????# ########??????????? | | ?????????????????????????# #?????????????????? | | ?????????????????????????# #?????????????????? | | ?????????????????????????# +?????????????????? | +----------------------------------------------------+ Best States ------------- Heat Dissipation 92 Energy Generation 30 Energy Capacity 558 Matter Stores 300 Matter Capacity 300 Sight Range 18 Robot Scan Range 16 Terrain Scan Range 20 Terrain Scan Density 210 Armor Coverage 1200 Core Shielding 20 Evasion (%) 55 Targeting Accuracy 8 Recoil Reduction 4 Item Schematics ----------------- None Robot Schematics ------------------ None Fabricated ------------ Nothing Alien Tech Used ----------------- None Achievements -------------- None Challenges ------------ None Game ------ Seed CoreContainmentDriver Manual? 0 Play Time 02:38:09 Cumulative 521.1 hours Start 2024.08.20 @ 23:48:09 End 2024.08.21 @ 02:47:09 Sessions 3 Manual Loads 0 Difficulty Rogue Special Mode None Game No. 123 Rogue 83 Adventurer 4 Explorer 36 Win Type - Total 38 Types 18/6/4/2/2/3/2/0/1 Lore% 56 Gallery% 81 Achievement% 89 Wizard Run 0 Options --------- Layout 1 ASCII 0 Keyboard 1 Movement Vi Keybinds 0 Fullscreen 1 Font 24/Proggy Map View 76x35 Zoom Use 0% Tactical HUD 1 Map Filters NONE Filters NONE Steam 1 RUN: a3aa133a-cf4e-4316-8062-af19ab5b3076